fUSD/lending_fUSD_20240318
["ID","MTS","AMOUNT","RATE_DAILY","PERIOD"]
[319445310,1710759407859,-154.91003162,0.000131,2]
[319445311,1710759407879,-363.0,0.00013123,2]
[319445312,1710759407900,-872.05023993,0.00013155,2]
[319445313,1710759408247,-2000.0,0.00013155,2]
[319445314,1710759408983,-2000.0,0.00013155,2]
[319445315,1710759409491,-2000.0,0.00013155,2]
[319445316,1710759409947,-2000.0,0.00013155,2]
[319445317,1710759410368,-2000.0,0.00013155,2]
[319445318,1710759410757,-2000.0,0.00013155,2]
[319445319,1710759411158,-2000.0,0.00013155,2]
[319445320,1710759411539,-2000.0,0.00013155,2]
[319445321,1710759411841,-2000.0,0.00013155,2]
[319445322,1710759412286,-2000.0,0.00013155,2]
[319445323,1710759412721,-2000.0,0.00013155,2]
[319445324,1710759413165,-1027.94976007,0.00013155,2]
[319445325,1710759414714,972.05023993,0.00012,2]
[319445326,1710759414736,156.75629783,0.00012,2]
[319445327,1710759416397,317.38530222,0.00012,2]
[319445328,1710759417249,323.54889827,0.00012,2]
[319445329,1710759420428,297.58336343,0.00012,2]
[319445330,1710759421554,904.72613825,0.00012,2]
[319445331,1710759421576,2000.0,0.00012,2]
[319445332,1710759421598,2000.0,0.00012,2]
[319445333,1710759421619,2000.0,0.00012,2]
[319445334,1710759421644,2000.0,0.00012,2]
[319445335,1710759421665,2000.0,0.00012,2]
[319445336,1710759421688,2000.0,0.00012,2]
[319445337,1710759421711,2000.0,0.00012,2]
[319445338,1710759421732,2000.0,0.00012,2]
[319445339,1710759421754,2000.0,0.00012,2]
[319445340,1710759432234,-2000.0,0.00012,2]
[319445341,1710759435210,-2000.0,0.00012,2]
[319445342,1710759437823,-320.47832221,0.00011999,2]
[319445343,1710759437844,-1632.40782579,0.00012,2]
[319445344,1710759437864,-47.113852,0.00012,2]
[319445345,1710759439129,-1886.47357153,0.00012,2]
[319445346,1710759439306,-113.52642847,0.00012,2]
[319445347,1710759440331,-173.18181239,0.00012,2]
[319445348,1710759440352,-172.90791412,0.00012,2]
[319445349,1710759440373,-295.15163022,0.00012,2]
[319445350,1710759440394,-323.32383095,0.00012,2]
[319445351,1710759440416,-1035.43481232,0.00012,2]
[319445352,1710759442222,-93.37172544,0.00012,2]
[319445353,1710759442260,-317.38530222,0.00012,2]
[319445354,1710759446513,330.0,0.0001315,2]
[319445355,1710759451533,1259.24297234,0.00012,2]
[319445356,1710759451556,2000.0,0.00012,2]
[319445357,1710759451577,2000.0,0.00012,2]
[319445358,1710759451597,2000.0,0.00012,2]
[319445359,1710759451619,2000.0,0.00012,2]
[319445360,1710759451639,2000.0,0.00012,2]
[319445361,1710759451662,2000.0,0.00012,2]
[319445362,1710759451682,2000.0,0.00012,2]
[319445363,1710759451701,2000.0,0.00012,2]
[319445364,1710759451720,2000.0,0.00012,2]
[319445365,1710759452368,-2000.0,0.00012,2]
[319445366,1710759452933,-2000.0,0.00012,2]
[319445367,1710759453499,-1259.24782449,0.00012,2]
[319445368,1710759454724,740.75217551,0.00012,2]
[319445369,1710759454748,386.97470949,0.00012,2]
[319445370,1710759455733,196.42201459,0.00012,2]
[319445371,1710759458772,317.04687786,0.00012,2]
[319445372,1710759460214,155.0,0.00012,2]
[319445373,1710759460900,294.94237584,0.00012,2]
[319445374,1710759484259,155.0,0.00012,2]
[319445375,1710759504235,155.0,0.00012,2]
[319445376,1710759522625,155.0,0.00012,2]
[319445377,1710759544278,155.0,0.00012,2]
[319445378,1710759564333,29.61402222,0.00012,2]
[319445379,1710759564353,204.01547682,0.00012,2]
[319445380,1710759588050,161.0,0.0001315,2]
[319445383,1710759606717,150.0,0.0001315,2]
[319445384,1710759689802,192.14,0.00013115,2]
[319445385,1710759691506,164.0,0.00013115,2]
[319445386,1710759723918,159.79,0.00013109,2]
[319445387,1710759731555,178.29,0.00013,2]
[319445388,1710759733364,250.0,0.00013109,2]
[319445389,1710759770405,540.76452318,0.00011227,2]
[319445390,1710759770428,110.00547682,0.00011227,2]
[319445391,1710759827594,1889.99452318,0.00012936,2]
[319445392,1710759932164,-163.3317181,0.00012877,2]
[319445393,1710759932187,-535.31108494,0.00012878,2]
[319445394,1710759932207,-150.0,0.00012879,2]
[319445395,1710759932227,-1280.29601648,0.00012891,2]
[319445396,1710759932247,-826.52,0.00012893,2]
[319445397,1710759932267,-4775.40547682,0.00012936,2]
[319445398,1710759932288,-155.14,0.00013163,2]
[319445399,1710759932308,-650.77,0.00013491,2]
[319445400,1710759932330,-154.91003162,0.000135,2]
[319445401,1710759932564,-150.0,0.00013504,2]
[319445402,1710759932585,-3261.21,0.00013505,2]
[319445403,1710759932606,-1852.42,0.00013505,2]
[319445404,1710759932626,-178.29,0.00013548,2]
[319445405,1710759932645,-201.45443222,0.00013699,2]
[319445406,1710759932666,-250.0,0.00013699,2]
[319445407,1710759932691,-500.0,0.00013699,2]
[319445408,1710759932712,-381.68,0.00013699,2]
[319445409,1710759932733,-913.63766412,0.000137,2]
[319445410,1710759932754,-3418.9195,0.00013788,2]
[319445411,1710759932777,-315.22,0.00013799,2]
[319445412,1710759932798,-901.6,0.00013803,2]
[319445413,1710759932819,-335.0,0.00013835,2]
[319445414,1710759932839,-161.0,0.00013835,2]
[319445415,1710759932861,-150.0,0.00013835,2]
[319445416,1710759932882,-152.2370026,0.00013872,2]
[319445417,1710759932901,-656.05350684,0.00013886,2]
[319445418,1710760165456,-163.3317181,0.00012999,2]
[319445419,1710760165475,-150.79595679,0.00013,2]
[319445420,1710760165496,-7.60180404,0.00013,2]
[319445421,1710760200329,585.69,0.00011168,2]
[319445431,1710760232175,-253.80709922,0.00012999,2]
[319445432,1710760232186,-984.53450096,0.00012999,2]
[319445434,1710760232198,-605.87000025,0.00012999,2]
[319445484,1710760233192,-35899.9999999,0.00012999,2]
[319445486,1710760233204,-377.37407098,0.00012999,2]
[319445489,1710760233224,-7031.59422298,0.00012999,2]
[319445510,1710760233400,-24180.40563557,0.00012999,2]
[319445514,1710760233437,-458.031958,0.00012999,2]
[319445516,1710760233450,-366714.24162114,0.00012999,2]
[319445518,1710760233460,-142.39819596,0.00013,2]
[319445520,1710760233470,-250.0,0.00013085,2]
[319445522,1710760233479,-2000.0,0.00013182,2]
[319445524,1710760233490,-934.4,0.00013289,2]
[319445526,1710760233500,-585.69,0.00013432,2]
[319445527,1710760233510,-180.02,0.0001358,2]
[319445528,1710760233520,-250.0,0.00013699,2]
[319445529,1710760233530,-250.86008849,0.00013699,2]
[319445530,1710760233540,-150.55706178,0.00013699,2]
[319445531,1710760233550,-154.91003162,0.00013786,2]
[319445532,1710760233560,-152.49332461,0.000138,2]
[319445533,1710760233571,-152.49332461,0.00013814,2]
[319445534,1710760233582,-152.49332461,0.00013829,2]
[319445535,1710760233592,-152.2370026,0.00013833,2]
[319445536,1710760233602,-152.49332461,0.00013843,2]
[319445537,1710760233612,-152.49332461,0.00013857,2]
[319445538,1710760233621,-152.2370026,0.00013867,2]
[319445539,1710760233631,-152.49332461,0.00013871,2]
[319445540,1710760233642,-152.49332461,0.00013886,2]
[319445541,1710760233656,-119.81057687,0.00013886,2]
[319445542,1710760233667,-4231.11233163,0.00013886,2]
[319445543,1710760233677,-1379.24156193,0.00013886,2]
[319445544,1710760233688,-183.91686028,0.00013886,2]
[319445545,1710760233698,-155.90354503,0.00013886,2]
[319445546,1710760233707,-155.0,0.00013886,2]
[319445547,1710760233717,-163.3317181,0.00013898,2]
[319445548,1710760233726,-267.54607243,0.00013899,2]
[319445549,1710760233736,-64695.11302149,0.000139,2]
[319445550,1710760233746,-206187.49918528,0.000139,2]
[319445551,1710760233758,-38812.50081472,0.000139,2]
[319445552,1710760233768,-328.4144,0.000139,2]
[319445553,1710760233778,-232025.57739517,0.000139,2]
[319445554,1710760233790,-152.49332461,0.000139,2]
[319445555,1710760233799,-155.81841406,0.000139,2]
[319445556,1710760233809,-152.2370026,0.000139,2]
[319445557,1710760233818,-585.05142566,0.000139,2]
[319445558,1710760233828,-155.0,0.00013998,2]
[319445559,1710760233837,-2199.28206236,0.00013998,2]
[319445560,1710760233847,-155.55177531,0.00013999,2]
[319445561,1710760233857,-547.88346806,0.00013999,2]
[319445562,1710760233866,-155.36878202,0.00013999,2]
[319445563,1710760233875,-155.23078954,0.00013999,2]
[319445564,1710760233884,-30879.43733043,0.00013999,2]
[319445565,1710760233896,-36545.46803486,0.00013999,2]
[319445566,1710760233910,-127991.9614993,0.00014,2]
[319445567,1710760233929,-1504.13245275,0.00014,2]
[319445568,1710760233941,-852.59213198,0.00014,2]
[319445569,1710760233958,-345.64,0.00014,2]
[319445586,1710760238169,-744.57051448,0.000139,2]
[319445588,1710760238185,-363.25872601,0.000139,2]
[319445594,1710760238235,-2538.65989601,0.000139,2]
[319445597,1710760238246,-420.70121507,0.000139,2]
[319445598,1710760238255,-660.41022335,0.00014,3]
[319445600,1710760238265,-2713.89704085,0.00014,2]
[319445616,1710760238563,-131.88659593,0.00014,2]
[319445617,1710760238579,-477.79306398,0.00014,2]
[319445618,1710760238598,-1379.66550043,0.00014,2]
[319445619,1710760238632,-2836.74479185,0.00014,2]
[319445620,1710760238857,-2496.71182594,0.00014,2]
[319445621,1710760238869,-51097.5,0.00014,2]
[319445622,1710760238880,-29299420.79367633,0.00014,2]
[319445623,1710760238889,-11326.46583568,0.00014,2]
[319445624,1710760238899,-406.15792888,0.00014,2]
[319445625,1710760238909,-285.5,0.0001404,2]
[319445626,1710760238918,-178.29,0.00014096,2]
[319445627,1710760238927,-178.29,0.00014644,2]
[319445628,1710760238938,-2173.8,0.0001478,2]
[319445629,1710760238947,-159.89427708,0.00014849,2]
[319445630,1710760238956,-2221.19629,0.0001485,2]
[319445631,1710760238965,-7294.56110679,0.000149,2]
[319445632,1710760238975,-934.4,0.0001495,2]
[319445633,1710760238984,-6589.6871113,0.0001499,2]
[319445634,1710760238993,-679.75875243,0.00014998,2]
[319445635,1710760239002,-483.97095684,0.00014998,2]
[319445636,1710760239011,-155.38360784,0.00014998,2]
[319445637,1710760239021,-199.1651066,0.00014998,2]
[319445638,1710760239030,-935.30314299,0.00014999,2]
[319445639,1710760239039,-17310.41067446,0.00015,2]
[319445640,1710760239048,-74284.94869868,0.00015,2]
[319445641,1710760239059,-2333.36605109,0.00015,2]
[319445642,1710760239135,-29604.99238531,0.00015,2]
[319445643,1710760239144,-5000.0,0.00015,2]
[319445644,1710760239154,-3194.29109932,0.00015,2]
[319445645,1710760239163,-2232.5902,0.00015,2]
[319445646,1710760239172,-893.66622951,0.00015,2]
[319445647,1710760239181,-1182.78934636,0.00015102,2]
[319445648,1710760239190,-178.29,0.00015192,2]
[319445649,1710760239199,-1112.8523043,0.00015247,2]
[319445650,1710760239209,-773.0,0.000153,2]
[319445651,1710760239218,-335.0,0.00015342,2]
[319445652,1710760239227,-2221.1963,0.0001536,2]
[319445653,1710760239236,-3824.0,0.000154,2]
[319445654,1710760239245,-585.69,0.00015695,2]
[319445655,1710760239254,-334.36599877,0.0001574,2]
[319445656,1710760239263,-150.0,0.0001574,2]
[319445657,1710760239273,-285.5,0.00015795,2]
[319445658,1710760239282,-2221.1963,0.0001599,2]
[319445659,1710760239292,-192.14,0.00016394,2]
[319445660,1710760239301,-164.0,0.00016394,2]
[319445661,1710760239310,-1445.09185749,0.000164,2]
[319445662,1710760239324,-2221.1963,0.0001661,2]
[319445663,1710760239344,-934.4,0.00016611,2]
[319445664,1710760239363,-335.0,0.00016849,2]
[319445665,1710760239383,-750.0,0.00017,3]
[319445666,1710760239399,-2221.1963,0.0001724,2]
[319445667,1710760239417,-200.0,0.0001731,2]
[319445668,1710760239434,-2173.8,0.0001752,2]
[319445669,1710760239452,-285.5,0.0001755,2]
[319445670,1710760239471,-922.57,0.00017733,2]
[319445671,1710760239485,-922.57,0.00017733,2]
[319445672,1710760239502,-579.51,0.00017733,2]
[319445673,1710760239522,-452.01870967,0.000178,2]
[319445674,1710760239538,-12605.23640328,0.000178,2]
[319445689,1710760241088,-642.18873986,0.000178,2]
[319445690,1710760241112,-1028.443,0.000178,2]
[319445691,1710760241136,-6301.58967467,0.000178,2]
[319445692,1710760241152,-3345.79740568,0.000178,2]
[319445693,1710760241164,-2221.1963,0.0001786,2]
[319445694,1710760241174,-3627.21890445,0.0001788,2]
[319445695,1710760241183,-585.69,0.00017959,2]
[319445696,1710760241193,-1000.0,0.000182,2]
[319445697,1710760241202,-934.4,0.00018272,2]
[319445698,1710760241211,-335.0,0.00018356,2]
[319445699,1710760241221,-166.68,0.00018658,2]
[319445700,1710760241230,-150.0,0.000189,2]
[319445701,1710760241239,-4542.59036174,0.00019,2]
[319445702,1710760241249,-800.0,0.00019,3]
[319445703,1710760241258,-500.0,0.00019178,2]
[319445704,1710760241267,-253.78155825,0.00019178,2]
[319445705,1710760241277,-2022.0,0.00019178,5]
[319445706,1710760241286,-2193.0,0.00019178,5]
[319445707,1710760241296,-2193.0,0.00019178,5]
[319445708,1710760241305,-381.68,0.00019178,2]
[319445709,1710760241314,-158.09,0.00019178,2]
[319445710,1710760241323,-180.0,0.00019288,2]
[319445711,1710760241333,-285.5,0.00019304,2]
[319445712,1710760241343,-363.4667793,0.000195,2]
[319445713,1710760241353,-633.47384716,0.00019651,2]
[319445714,1710760241362,-192.14,0.00019672,2]
[319445715,1710760241371,-164.0,0.00019672,2]
[319445716,1710760241381,-200.0,0.0001974,2]
[319445717,1710760241391,-800.0,0.0001974,2]
[319445718,1710760241400,-200.0,0.0001974,2]
[319445719,1710760241412,-500.0,0.0001974,2]
[319445720,1710760241422,-200.0,0.0001974,2]
[319445721,1710760241432,-800.0,0.0001974,2]
[319445722,1710760241441,-200.0,0.0001974,2]
[319445723,1710760241451,-200.0,0.0001974,2]
[319445724,1710760241460,-200.0,0.0001974,2]
[319445725,1710760241470,-800.0,0.00019741,2]
[319445726,1710760241480,-200.0,0.00019741,2]
[319445727,1710760241490,-200.0,0.00019741,2]
[319445728,1710760241499,-200.0,0.00019741,2]
[319445729,1710760241509,-800.0,0.00019741,2]
[319445730,1710760241519,-800.0,0.00019741,2]
[319445731,1710760241529,-800.0,0.00019741,2]
[319445732,1710760241538,-200.0,0.00019741,2]
[319445733,1710760241547,-200.0,0.00019741,2]
[319445734,1710760241556,-200.0,0.00019741,2]
[319445735,1710760241565,-200.0,0.00019741,2]
[319445736,1710760241575,-200.0,0.00019741,2]
[319445737,1710760241583,-500.0,0.00019741,2]
[319445738,1710760241593,-500.0,0.00019741,2]
[319445739,1710760241602,-200.0,0.00019741,2]
[319445740,1710760241612,-200.0,0.00019741,2]
[319445741,1710760241621,-204.97,0.00019819,2]
[319445742,1710760241631,-335.0,0.00019863,2]
[319445743,1710760241640,-1000.0,0.00019897,2]
[319445744,1710760241649,-230.00603456,0.00019898,2]
[319445745,1710760241662,-1292.12464909,0.00019898,2]
[319445746,1710760241672,-10834.137,0.000199,2]
[319445747,1710760241681,-2332.18735724,0.000199,5]
[319445748,1710760241693,-3570.67919856,0.000199,5]
[319445774,1710760243278,-701.47735724,0.00014999,2]
[319445776,1710760243288,-798.52264276,0.000199,5]
[319445787,1710760243380,-2983.03747351,0.000199,5]
[319445789,1710760243391,-6105.3160448,0.000199,5]
[319445791,1710760243403,-373.68399747,0.000199,5]
[319445794,1710760243418,-1040.27904775,0.000199,5]
[319445811,1710760243572,-4445.23740939,0.000199,5]
[319445813,1710760243584,-1224.14998114,0.000199,5]
[319445815,1710760243595,-1459.0,0.000199,5]
[319445852,1710760246206,-20177.54965395,0.000199,5]
[319445945,1710760248833,-19490.898838,0.000199,5]
[319445946,1710760248984,-1373.565,0.000199,5]
[319445947,1710760248996,-477.12573113,0.000199,5]
[319445948,1710760249119,-3150.0,0.000199,5]
[319445949,1710760249131,-7620.21677394,0.000199,5]
[319445950,1710760249151,-521.79,0.000199,5]
[319445951,1710760249244,-12500.0,0.000199,5]
[319445952,1710760249256,-9599.90810258,0.000199,5]
[319445964,1710761432585,-522.86838567,0.00013735,2]
[319445965,1710761432595,-658.9308272,0.00013834,2]
[319445966,1710761432606,-281.0,0.00013835,2]
[319445967,1710761432615,-1607.14578713,0.000152,2]
[319445968,1710761432640,-1833.85421287,0.000152,2]
[319445969,1710761432650,-152.24598029,0.00015242,2]
[319445970,1710761432660,-281.0,0.00015342,2]
[319445971,1710761432669,-468.55,0.00016174,2]
[319445972,1710761432679,-152.24598027,0.00016382,2]
[319445973,1710761432688,-281.0,0.00016849,2]
[319445974,1710761432699,-750.0,0.00017,3]
[319445975,1710761432708,-152.24598027,0.00017521,2]
[319445976,1710761432717,-452.01870967,0.00017892,2]
[319445977,1710761432727,-529.12,0.00017893,2]
[319445978,1710761432736,-285.5,0.00017925,2]
[319445979,1710761432746,-2986.34,0.00017958,2]
[319445980,1710761432756,-186.88,0.00018037,2]
[319445981,1710761432766,-2000.0,0.00018039,2]
[319445982,1710761432775,-250.0,0.0001805,2]
[319445983,1710761432785,-150.0,0.0001812,2]
[319445984,1710761432794,-200.0,0.00018121,2]
[319445985,1710761432804,-250.0,0.00018156,2]
[319445986,1710761432813,-813.12,0.00018352,2]
[319445987,1710761432823,-499.99,0.00018352,2]
[319445988,1710761432833,-281.0,0.00018356,2]
[319445989,1710761432842,-468.55,0.00018438,2]
[319445990,1710761432852,-152.24598027,0.00018661,2]
[319445991,1710761432861,-150.02,0.00018671,2]
[319445992,1710761432871,-168.77,0.00018727,2]
[319445993,1710761432880,-800.0,0.00019,3]
[319445994,1710761432890,-158.09,0.00019178,2]
[319445995,1710761432900,-166.68,0.00019218,2]
[319445996,1710761432910,-4980.53315636,0.00019247,2]
[319445997,1710761432942,-6137.85684364,0.00019247,2]
[319445998,1710761432952,-363.4667793,0.000195,2]
[319445999,1710761432961,-171.78,0.00019504,2]
[319446000,1710761432971,-12475.13117813,0.00019622,2]
[319446001,1710761432980,-10888.822,0.00019623,2]
[319446002,1710761432990,-250.42589148,0.00019699,2]
[319446003,1710761432999,-800.0,0.0001974,2]
[319446004,1710761433009,-200.0,0.0001974,2]
[319446005,1710761433018,-500.0,0.0001974,2]
[319446006,1710761433028,-200.0,0.0001974,2]
[319446007,1710761433038,-200.0,0.00019741,2]
[319446008,1710761433047,-800.0,0.00019741,2]
[319446009,1710761433055,-200.0,0.00019741,2]
[319446010,1710761433064,-200.0,0.00019741,2]
[319446011,1710761433074,-334.87541617,0.00019741,2]
[319446012,1710761433092,-165.12458383,0.00019741,2]
[319446013,1710761433101,-200.0,0.00019741,2]
[319446014,1710761433111,-152.24598027,0.000198,2]
[319446015,1710761433120,-152.23700261,0.000198,2]
[319446016,1710761433129,-591.24225734,0.000198,2]
[319446017,1710761433138,-281.0,0.00019863,2]
[319446018,1710761433147,-380.32162797,0.00019891,2]
[319446019,1710761433156,-4919.09652798,0.00019891,2]
[319446020,1710761433232,-2178.48902787,0.00019891,2]
[319446029,1710761438412,-3724.51780595,0.00019891,2]
[319446030,1710761438421,-289.6266791,0.00019891,2]
[319446031,1710761438431,-893.85546178,0.00019891,2]
[319446032,1710761438469,-4115.71483959,0.00019891,2]
[319446033,1710761438485,-3222.31096003,0.00019891,2]
[319446034,1710761438494,-155.68422392,0.00019896,2]
[319446035,1710761438503,-155.0,0.00019898,2]
[319446036,1710761438513,-705.67561206,0.00019898,2]
[319446037,1710761438522,-559.38958846,0.00019898,2]
[319446038,1710761438532,-363.3100795,0.00019898,2]
[319446039,1710761438541,-570.2819602,0.00019898,2]
[319446040,1710761438551,-4435.62563128,0.00019898,2]
[319446041,1710761438560,-285.5434642,0.00019898,2]
[319446042,1710761438569,-200.20780693,0.00019898,2]
[319446043,1710761438579,-205.10166513,0.00019898,2]
[319446044,1710761438589,-547.88346806,0.00019898,2]
[319446045,1710761438598,-3059.35363945,0.00019898,2]
[319446046,1710761438608,-237.97081406,0.00019898,2]
[319446047,1710761438616,-1000.0,0.00019898,2]
[319446048,1710761438626,-155.14805121,0.00019898,2]
[319446049,1710761438635,-231.18733471,0.00019898,2]
[319446050,1710761438645,-318.07399296,0.00019898,2]
[319446051,1710761438654,-2967.16995294,0.00019898,2]
[319446052,1710761438663,-155.0,0.00019898,2]
[319446053,1710761438673,-1212.09284244,0.00019898,2]
[319446054,1710761438682,-155.0,0.00019899,2]
[319446055,1710761438691,-444.77852355,0.00019899,2]
[319446056,1710761438700,-526.10801793,0.00019899,2]
[319446057,1710761438710,-276.36241339,0.00019899,2]
[319446058,1710761438719,-11167.666,0.00019899,2]
[319446059,1710761438728,-103106.07395759,0.000199,5]
[319446060,1710761438748,-718.93999999,0.000199,5]
[319446062,1710761438782,-3430.00002,0.000199,5]
[319446065,1710761438800,-3272.29819122,0.000199,5]
[319446066,1710761438811,-27360.12312223,0.000199,5]
[319446069,1710761438855,-529.12011047,0.000199,5]
[319446081,1710761440382,-358.7,0.000199,5]
[319446082,1710761440393,-256.5203387,0.000199,5]
[319446083,1710761440404,-685.165,0.000199,5]
[319446084,1710761440511,-317.16287459,0.000199,5]
[319446085,1710761440682,-5048.7595916,0.000199,5]
[319446086,1710761440738,-382.67372742,0.000199,5]
[319446093,1710761443452,-394.58101345,0.00019899,2]
[319446094,1710761443462,-105.41898655,0.000199,5]
[319446095,1710761443512,-5003.30884943,0.000199,5]
[319446096,1710761443524,-1690.97351218,0.000199,5]
[319446097,1710761443535,-1729.15000002,0.000199,5]
[319446098,1710761443639,-3852.52861855,0.000199,5]
[319446099,1710761443698,-3305.90541251,0.000199,5]
[319446100,1710761443709,-8771.19851043,0.000199,5]
[319446101,1710761443722,-4134.09508812,0.000199,5]
[319446102,1710761443733,-7382.39464237,0.000199,5]
[319446103,1710761443745,-37528.61275182,0.000199,5]
[319446104,1710761443795,-221231.42754807,0.000199,5]
[319446108,1710761445458,-588.01461276,0.000199,5]
[319446109,1710761445480,-773.14932038,0.000199,5]
[319446110,1710761445491,-308.73288147,0.000199,5]
[319446111,1710761445503,-268.21355998,0.000199,5]
[319446112,1710761445542,-670.93769616,0.000199,5]
[319446113,1710761445553,-4249.57845866,0.000199,5]
[319446114,1710761445565,-1286.46779559,0.000199,5]
[319446115,1710761445694,-23330.9933714,0.000199,5]
[319446116,1710761445821,-13281.33808958,0.000199,5]
[319446117,1710761445848,-378.25350976,0.000199,5]
[319446130,1710761851320,5488.11,0.0002201,30]
[319446136,1710762093855,3001.95878114,0.0002201,30]
[319446143,1710762353331,-1053.0150337,0.00014999,2]
[319446144,1710762353352,-3000.0,0.00015,2]
[319446145,1710762353373,-3172.12525317,0.000152,2]
[319446146,1710762430095,-386.87474683,0.000152,2]
[319446147,1710762430115,-155.0,0.000152,2]
[319446148,1710762430134,-203.054595,0.0001731,2]
[319446149,1710762430153,-452.01870967,0.000178,2]
[319446150,1710762430172,-250.0,0.00018335,2]
[319446151,1710762430191,-250.0,0.00018365,2]
[319446152,1710762430211,-158.37,0.00018365,2]
[319446153,1710762430229,-150.0,0.00018384,2]
[319446154,1710762430248,-1990.22,0.00018419,2]
[319446155,1710762430269,-187.32,0.00018485,2]
[319446156,1710762430289,-186.88,0.00018549,2]
[319446157,1710762430313,-4329.12,0.00018657,2]
[319446158,1710762430332,-566.06,0.00018707,2]
[319446159,1710762430351,-156.72,0.00018808,2]
[319446160,1710762430372,-234.0,0.00018828,2]
[319446161,1710762430393,-171.74,0.00018877,2]
[319446162,1710762430413,-850.49,0.00018888,2]
[319446163,1710762430434,-150.99,0.00018888,2]
[319446164,1710762430453,-922.57,0.00019035,2]
[319446165,1710762430473,-408.47,0.00019035,2]
[319446166,1710762430492,-408.47,0.00019035,2]
[319446167,1710762430510,-922.57,0.00019035,2]
[319446168,1710762430530,-408.47,0.00019035,2]
[319446169,1710762430552,-922.57,0.00019035,2]
[319446170,1710762430571,-408.47,0.00019035,2]
[319446171,1710762430592,-922.57,0.00019035,2]
[319446172,1710762430611,-922.57,0.00019035,2]
[319446173,1710762430632,-408.47,0.00019035,2]
[319446174,1710762430651,-922.57,0.00019035,2]
[319446175,1710762430671,-408.47,0.00019035,2]
[319446176,1710762430690,-922.57,0.00019141,2]
[319446177,1710762430873,-408.47,0.00019141,2]
[319446178,1710762430894,-158.09,0.00019178,2]
[319446179,1710762430913,-300.0,0.000194,2]
[319446180,1710762430935,-363.4667793,0.000195,2]
[319446181,1710762430957,-6521.88503146,0.0001974,2]
[319446182,1710762439160,-452.63,0.00017371,2]
[319446183,1710762439181,-922.57,0.00019041,2]
[319446184,1710762439200,-407.99,0.00019041,2]
[319446185,1710762439220,-452.63,0.00019635,2]
[319446186,1710762439238,-4469.70475324,0.0001974,2]
[319446201,1710762631693,-452.01870967,0.00019108,2]
[319446202,1710762631703,-887.87,0.00019109,2]
[319446203,1710762631713,-243.0338664,0.000195,2]
[319446204,1710762631722,-545.60415886,0.000197,2]
[319446205,1710762631733,-897.64498718,0.000197,2]
[319446206,1710762631749,-221.37901451,0.000197,2]
[319446207,1710762631758,-2426.31240377,0.0001971,2]
[319446208,1710762631770,-587.07803195,0.0001971,2]
[319446209,1710762631822,-1284.0029637,0.0001971,2]
[319446210,1710762631834,-550.0,0.0001971,2]
[319446211,1710762631884,-1272.22164415,0.0001971,2]
[319446212,1710762631993,-458.40487104,0.0001971,2]
[319446215,1710762632005,-730.35536255,0.0001971,2]
[319446312,1710762637769,-3051.50231,0.0001971,2]
[319446313,1710762637817,-802.79336518,0.0001971,2]
[319446314,1710762637836,-1312.46022579,0.0001971,2]
[319446315,1710762637845,-1000.0,0.00019711,2]
[319446316,1710762637854,-155.0,0.0001974,2]
[319446317,1710762637862,-2000.0,0.0001974,2]
[319446318,1710762637871,-200.0,0.00019741,2]
[319446319,1710762637881,-800.0,0.00019741,2]
[319446320,1710762637890,-200.0,0.00019741,2]
[319446321,1710762637899,-500.0,0.00019741,2]